fUSD/lending_fUSD_20251017
["ID","MTS","AMOUNT","RATE_DAILY","PERIOD"]
[391700998,1760733062621,-873.0,0.00045369,2]
[391700999,1760733062630,-873.0,0.00045369,2]
[391701000,1760733062640,-500.0,0.00045369,2]
[391701001,1760733062650,-500.0,0.00045369,2]
[391701002,1760733062659,-500.0,0.00045369,2]
[391701003,1760733062669,-500.0,0.00045369,2]
[391701004,1760733062678,-154.53232735,0.00045369,2]
[391701005,1760733062688,-500.0,0.00045369,2]
[391701006,1760733062698,-151.78574834,0.00045369,2]
[391701007,1760733062707,-500.0,0.00045369,2]
[391701008,1760733062717,-400.0,0.0004537,3]
[391701009,1760733062726,-150.0,0.00045377,30]
[391701010,1760733062735,-500.0,0.00045379,2]
[391701011,1760733062744,-173.0,0.000454,38]
[391701012,1760733062754,-232.49773783,0.000454,120]
[391701013,1760733062764,-500.0,0.0004542,120]
[391701014,1760733062774,-500.0,0.0004542,120]
[391701015,1760733062783,-500.0,0.0004542,120]
[391701016,1760733062792,-500.0,0.0004542,120]
[391701017,1760733062802,-500.0,0.0004542,120]
[391701018,1760733062811,-150.0,0.0004542,30]
[391701019,1760733062820,-151.0,0.00045424,2]
[391701020,1760733062830,-292.32810043,0.00045424,2]
[391701021,1760733062840,-150.0,0.00045424,2]
[391701022,1760733062850,-500.0,0.00045424,2]
[391701023,1760733062859,-775.0,0.00045424,2]
[391701024,1760733062868,-500.0,0.00045424,2]
[391701025,1760733062878,-500.0,0.00045424,2]
[391701026,1760733062887,-500.0,0.00045424,2]
[391701027,1760733062896,-548.0,0.00045424,2]
[391701028,1760733062905,-300.0,0.00045424,2]
[391701029,1760733062914,-500.0,0.00045424,2]
[391701030,1760733062924,-500.0,0.00045424,2]
[391701031,1760733062933,-1988.0,0.00045424,2]
[391701032,1760733062943,-500.0,0.00045424,2]
[391701033,1760733062953,-500.0,0.00045424,2]
[391701035,1760733062962,-1664.0,0.00045424,2]
[391701037,1760733062972,-500.0,0.00045424,2]
[391701039,1760733062981,-489.0,0.00045424,2]
[391701041,1760733062990,-500.0,0.00045424,2]
[391701043,1760733063001,-873.0,0.00045424,2]
[391701045,1760733063010,-873.0,0.00045424,2]
[391701047,1760733063019,-500.0,0.00045424,2]
[391701049,1760733063029,-500.0,0.00045424,2]
[391701051,1760733063038,-500.0,0.00045424,2]
[391701053,1760733063048,-500.0,0.00045424,2]
[391701055,1760733063058,-610.64745741,0.00045424,2]
[391701056,1760733063068,-407.23852358,0.00045424,2]
[391701057,1760733063078,-316.0,0.00045432,120]
[391701058,1760733063087,-500.0,0.00045432,2]
[391701059,1760733063097,-5888.0,0.00045432,2]
[391701060,1760733063107,-200.0,0.0004544,120]
[391701061,1760733063117,-150.0,0.0004544,30]
[391701062,1760733063126,-151.0,0.00045441,120]
[391701064,1760733063136,-151.0,0.00045443,30]
[391701066,1760733063145,-156.587,0.00045443,30]
[391701068,1760733063155,-162.380719,0.00045443,30]
[391701070,1760733063165,-168.3888056,0.00045443,30]
[391701072,1760733063175,-174.61919141,0.00045443,30]
[391701074,1760733063184,-260.78528398,0.00045443,30]
[391701076,1760733063193,-200.0,0.00045443,30]
[391701078,1760733063203,-168.84223589,0.00045443,30]
[391701080,1760733063212,-151.0,0.00045443,30]
[391701082,1760733063221,-151.0,0.00045443,14]
[391701084,1760733063231,-151.0,0.00045443,120]
[391701086,1760733063246,-279.889391,0.00045443,14]
[391701088,1760733063256,-151.0,0.00045443,120]
[391701091,1760733063266,-151.0,0.00045443,120]
[391701093,1760733063275,-151.0,0.00045443,120]
[391701095,1760733063284,-151.0,0.00045443,120]
[391701097,1760733063293,-151.0,0.00045443,120]
[391701099,1760733063303,-151.0,0.00045443,120]
[391701101,1760733063312,-151.0,0.00045443,120]
[391701103,1760733063321,-151.0,0.00045443,120]
[391701105,1760733063331,-151.0,0.00045443,120]
[391701107,1760733063340,-151.0,0.00045443,120]
[391701109,1760733063349,-192.780445,0.00045443,120]
[391701111,1760733063362,-151.0,0.00045443,120]
[391701113,1760733063371,-926.247831,0.00045443,120]
[391701115,1760733063380,-192.780445,0.00045443,120]
[391701117,1760733063389,-926.247831,0.00045443,120]
[391701119,1760733063398,-192.780445,0.00045443,120]
[391701121,1760733063407,-151.0,0.00045443,120]
[391701122,1760733063415,-926.247831,0.00045443,120]
[391701124,1760733063426,-192.780445,0.00045443,120]
[391701127,1760733063436,-151.0,0.00045443,120]
[391701129,1760733063446,-926.247831,0.00045443,120]
[391701131,1760733063455,-151.0,0.00045443,120]
[391701133,1760733063466,-151.0,0.00045443,120]
[391701135,1760733063475,-151.0,0.00045443,120]
[391701137,1760733063484,-151.0,0.00045443,120]
[391701139,1760733063493,-151.0,0.00045443,120]
[391701141,1760733063502,-520.0,0.00045443,30]
[391701143,1760733063512,-539.24,0.00045443,30]
[391701156,1760733063634,-559.19188,0.00045443,30]
[391701158,1760733063644,-579.88197956,0.00045443,30]
[391701160,1760733063654,-220.0,0.00045443,30]
[391701162,1760733063663,-601.3376128,0.00045443,30]
[391701164,1760733063672,-220.0,0.00045443,30]
[391701166,1760733063682,-623.58710448,0.00045443,30]
[391701168,1760733063691,-220.0,0.00045443,30]
[391701170,1760733063700,-646.65982734,0.00045443,30]
[391701172,1760733063710,-670.58624095,0.00045443,30]
[391701173,1760733063719,-151.0,0.00045443,120]
[391701175,1760733063728,-819.892489,0.00045443,120]
[391701177,1760733063738,-695.39793187,0.00045443,30]
[391701179,1760733063747,-721.12765535,0.00045443,30]
[391701181,1760733063756,-747.8093786,0.00045443,30]
[391701184,1760733063766,-819.892489,0.00045443,120]
[391701186,1760733063776,-775.47832561,0.00045443,30]
[391701188,1760733063785,-804.17102365,0.00045443,30]
[391701190,1760733063795,-819.892489,0.00045443,120]
[391701192,1760733063805,-833.92535153,0.00045443,30]
[391701193,1760733063815,-864.78058953,0.00045443,30]
[391701195,1760733063825,-819.892489,0.00045443,120]
[391701198,1760733063835,-896.77747135,0.00045443,30]
[391701200,1760733063844,-3720.645209,0.00045443,120]
[391701202,1760733063858,-1039.91701142,0.00045443,30]
[391701203,1760733063868,-3720.645209,0.00045443,120]
[391701206,1760733063880,-3720.645209,0.00045443,120]
[391701208,1760733063889,-663.926566,0.00045443,120]
[391701210,1760733063899,-3720.645209,0.00045443,120]
[391701212,1760733063909,-663.926566,0.00045443,120]
[391701214,1760733063928,-663.926566,0.00045443,120]
[391701215,1760733063937,-151.0,0.00045443,120]
[391701217,1760733063947,-151.0,0.00045443,120]
[391701219,1760733063956,-663.926566,0.00045443,120]
[391701221,1760733063966,-5482.815337,0.00045443,120]
[391701223,1760733063975,-5482.815337,0.00045443,120]
[391701225,1760733063984,-5482.815337,0.00045443,120]
[391701227,1760733063993,-200.0,0.00045443,30]
[391701229,1760733064002,-151.0,0.00045443,120]
[391701231,1760733064011,-250.695782,0.00045443,120]
[391701233,1760733064021,-207.4,0.00045443,30]
[391701235,1760733064031,-215.0738,0.00045443,30]
[391701237,1760733064040,-5482.815337,0.00045443,120]
[391701239,1760733064050,-250.695782,0.00045443,120]
[391701241,1760733064060,-223.0315306,0.00045443,30]
[391701243,1760733064072,-231.28369723,0.00045443,30]
[391701245,1760733064082,-151.0,0.00045443,120]
[391701248,1760733064092,-151.0,0.00045443,120]
[391701250,1760733064101,-239.84119403,0.00045443,30]
[391701252,1760733064111,-151.0,0.00045443,120]
[391701254,1760733064120,-250.695782,0.00045443,120]
[391701256,1760733064130,-248.71531821,0.00045443,30]
[391701258,1760733064139,-151.0,0.00045443,120]
[391701260,1760733064149,-257.91778498,0.00045443,30]
[391701261,1760733064159,-267.46074303,0.00045443,30]
[391701263,1760733064168,-250.695782,0.00045443,120]
[391701265,1760733064178,-741.469166,0.00045443,120]
[391701267,1760733064187,-277.35679052,0.00045443,30]
[391701269,1760733064196,-151.0,0.00045443,120]
[391701271,1760733064206,-287.61899177,0.00045443,30]
[391701273,1760733064215,-298.26089446,0.00045443,30]
[391701275,1760733064224,-741.469166,0.00045443,120]
[391701277,1760733064234,-309.29654756,0.00045443,30]
[391701279,1760733064243,-320.74051982,0.00045443,30]
[391701282,1760733064253,-972.62092,0.00045443,120]
[391701284,1760733064263,-332.60791905,0.00045443,30]
[391701285,1760733064272,-250.0,0.00045443,30]
[391701288,1760733064282,-741.469166,0.00045443,120]
[391701289,1760733064291,-344.91441206,0.00045443,30]
[391701291,1760733064300,-250.0,0.00045443,30]
[391701293,1760733064309,-357.6762453,0.00045443,30]
[391701295,1760733064319,-972.62092,0.00045443,120]
[391701297,1760733064328,-250.0,0.00045443,30]
[391701299,1760733064338,-741.469166,0.00045443,120]
[391701301,1760733064347,-370.91026638,0.00045443,30]
[391701303,1760733064357,-250.0,0.00045443,30]
[391701305,1760733064366,-384.63394623,0.00045443,30]
[391701307,1760733064376,-250.0,0.00045443,30]
[391701309,1760733064386,-972.62092,0.00045443,120]
[391701311,1760733064395,-398.86540225,0.00045443,30]
[391701313,1760733064404,-250.0,0.00045443,30]
[391701315,1760733064414,-250.0,0.00045443,30]
[391701317,1760733064423,-151.0,0.00045443,120]
[391701319,1760733064432,-972.62092,0.00045443,120]
[391701321,1760733064441,-250.0,0.00045443,30]
[391701323,1760733064451,-250.0,0.00045443,30]
[391701325,1760733064460,-337.04050925,0.00045443,30]
[391701327,1760733064469,-151.0,0.00045443,120]
[391701329,1760733064478,-359.280629,0.00045443,120]
[391701331,1760733064487,-151.0,0.00045443,120]
[391701333,1760733064496,-359.280629,0.00045443,120]
[391701335,1760733064505,-151.0,0.00045443,120]
[391701337,1760733064515,-359.280629,0.00045443,120]
[391701339,1760733064524,-151.0,0.00045443,120]
[391701341,1760733064533,-359.280629,0.00045443,120]
[391701343,1760733064547,-500.0,0.00045443,30]
[391701345,1760733064557,-518.5,0.00045443,30]
[391701347,1760733064566,-537.6845,0.00045443,30]
[391701349,1760733064576,-557.5788265,0.00045443,30]
[391701351,1760733064585,-151.0,0.00045443,120]
[391701353,1760733064594,-201.84880705,0.00045443,120]
[391701355,1760733064603,-578.20924308,0.00045443,30]
[391701357,1760733064613,-599.60298507,0.00045443,30]
[391701359,1760733064623,-621.78829552,0.00045443,30]
[391701361,1760733064635,-644.79446246,0.00045443,30]
[391701363,1760733064644,-151.0,0.00045443,30]
[391701364,1760733064654,-668.65185757,0.00045443,30]
[391701365,1760733064663,-693.3919763,0.00045443,30]
[391701366,1760733064672,-719.04747942,0.00045443,30]
[391701367,1760733064682,-151.0,0.00045443,30]
[391701368,1760733064691,-642.99635445,0.00045443,30]
[391701369,1760733064701,-151.0,0.00045443,30]
[391701370,1760733064710,-156.587,0.00045443,30]
[391701371,1760733064719,-162.380719,0.00045443,30]
[391701372,1760733064729,-500.0,0.00045443,2]
[391701373,1760733064738,-500.0,0.00045443,2]
[391701374,1760733064750,-500.0,0.00045443,2]
[391701375,1760733064759,-218.027628,0.00045443,20]
[391701376,1760733064768,-168.3888056,0.00045443,30]
[391701377,1760733064778,-174.61919141,0.00045443,30]
[391701378,1760733064787,-218.027628,0.00045443,20]
[391701379,1760733064797,-181.08010149,0.00045443,30]
[391701380,1760733064808,-187.78006525,0.00045443,30]
[391701381,1760733064817,-194.72792766,0.00045443,30]
[391701382,1760733064826,-218.027628,0.00045443,20]
[391701383,1760733064835,-181.24048404,0.00045443,30]
[391701384,1760733064844,-218.027628,0.00045443,20]
[391701386,1760733064854,-711.887367,0.00045443,120]
[391701388,1760733064863,-342.892241,0.00045443,120]
[391701389,1760733064872,-711.887367,0.00045443,120]
[391701390,1760733064882,-342.892241,0.00045443,120]
[391701391,1760733064891,-711.887367,0.00045443,120]
[391701392,1760733064900,-342.892241,0.00045443,120]
[391701393,1760733064909,-711.887367,0.00045443,120]
[391701394,1760733064919,-151.0,0.00045443,120]
[391701395,1760733064929,-342.892241,0.00045443,120]
[391701396,1760733064939,-151.0,0.00045443,120]
[391701397,1760733064948,-211.970065,0.00045443,120]
[391701398,1760733064958,-211.970065,0.00045443,120]
[391701399,1760733064967,-211.970065,0.00045443,120]
[391701400,1760733064977,-211.970065,0.00045443,120]
[391701401,1760733064986,-1487.31,0.00045443,120]
[391701402,1760733064996,-151.0,0.00045443,30]
[391701403,1760733065006,-151.0,0.00045443,30]
[391701404,1760733065021,-500.0,0.00045443,30]
[391701405,1760733065030,-1000.0,0.00045443,30]
[391701406,1760733065039,-151.0,0.00045443,30]
[391701407,1760733065049,-151.0,0.00045443,30]
[391701408,1760733065058,-1000.0,0.00045443,30]
[391701409,1760733065067,-151.0,0.00045443,30]
[391701410,1760733065076,-500.0,0.00045443,30]
[391701411,1760733065089,-151.0,0.00045443,30]
[391701412,1760733065098,-151.0,0.00045443,30]
[391701413,1760733065109,-1000.0,0.00045443,30]
[391701414,1760733065118,-1000.0,0.00045443,30]
[391701415,1760733065128,-500.0,0.00045443,30]
[391701416,1760733065137,-151.0,0.00045443,30]
[391701417,1760733065147,-500.0,0.00045443,30]
[391701418,1760733065156,-1000.0,0.00045443,30]
[391701419,1760733065166,-151.0,0.00045443,30]
[391701420,1760733065176,-1000.0,0.00045443,30]
[391701421,1760733065186,-151.0,0.00045443,30]
[391701422,1760733065195,-500.0,0.00045443,30]
[391701423,1760733065205,-151.0,0.00045443,30]
[391701424,1760733065214,-1000.0,0.00045443,30]
[391701425,1760733065223,-1000.0,0.00045443,30]
[391701426,1760733065233,-151.0,0.00045443,30]
[391701427,1760733065243,-500.0,0.00045443,30]
[391701428,1760733065252,-1000.0,0.00045443,30]
[391701429,1760733065261,-151.0,0.00045443,30]
[391701430,1760733065270,-1000.0,0.00045443,30]
[391701431,1760733065280,-151.0,0.00045443,30]
[391701432,1760733065289,-500.0,0.00045443,30]
[391701433,1760733065298,-1000.0,0.00045443,30]
[391701434,1760733065308,-151.0,0.00045443,30]
[391701435,1760733065318,-1000.0,0.00045443,30]
[391701436,1760733065327,-151.0,0.00045443,30]
[391701437,1760733065336,-151.0,0.00045443,30]
[391701438,1760733065345,-500.0,0.00045443,30]
[391701439,1760733065355,-1000.0,0.00045443,30]
[391701440,1760733065365,-1000.0,0.00045443,30]
[391701441,1760733065374,-151.0,0.00045443,30]
[391701442,1760733065384,-151.0,0.00045443,30]
[391701443,1760733065394,-160.0,0.00045443,30]
[391701444,1760733065403,-151.0,0.00045443,30]
[391701445,1760733065413,-500.0,0.00045443,30]
[391701446,1760733065423,-151.0,0.00045443,30]
[391701447,1760733065432,-1000.0,0.00045443,30]
[391701448,1760733065442,-151.0,0.00045443,30]
[391701449,1760733065451,-1000.0,0.00045443,30]
[391701450,1760733065461,-160.0,0.00045443,30]
[391701451,1760733065470,-151.0,0.00045443,30]
[391701452,1760733065479,-500.0,0.00045443,30]
[391701453,1760733065488,-151.0,0.00045443,30]
[391701454,1760733065498,-1000.0,0.00045443,30]
[391701455,1760733065507,-151.0,0.00045443,30]
[391701456,1760733065516,-1000.0,0.00045443,30]
[391701457,1760733065525,-151.0,0.00045443,30]
[391701458,1760733065536,-500.0,0.00045443,30]
[391701459,1760733065547,-151.0,0.00045443,30]
[391701460,1760733065557,-1000.0,0.00045443,30]
[391701461,1760733065567,-151.0,0.00045443,30]
[391701462,1760733065576,-1000.0,0.00045443,30]
[391701463,1760733065586,-160.0,0.00045443,30]
[391701464,1760733065595,-151.0,0.00045443,30]
[391701465,1760733065605,-500.0,0.00045443,30]
[391701466,1760733065614,-151.0,0.00045443,30]
[391701467,1760733065623,-1000.0,0.00045443,30]
[391701468,1760733065633,-151.0,0.00045443,30]
[391701469,1760733065747,-1000.0,0.00045443,30]
[391701470,1760733065757,-160.0,0.00045443,30]
[391701471,1760733065767,-151.0,0.00045443,30]
[391701472,1760733065776,-151.0,0.00045443,30]
[391701473,1760733065786,-151.0,0.00045443,30]
[391701474,1760733065795,-1000.0,0.00045443,30]
[391701475,1760733065804,-1000.0,0.00045443,30]
[391701476,1760733065813,-160.0,0.00045443,30]
[391701477,1760733065822,-151.0,0.00045443,30]
[391701478,1760733065831,-1000.0,0.00045443,30]
[391701479,1760733065841,-1000.0,0.00045443,30]
[391701480,1760733065850,-160.0,0.00045443,30]
[391701481,1760733065859,-151.0,0.00045443,30]
[391701482,1760733065868,-151.0,0.00045443,30]
[391701483,1760733065877,-177.804928,0.00045443,120]
[391701484,1760733065887,-1000.0,0.00045443,30]
[391701485,1760733065896,-160.0,0.00045443,30]
[391701486,1760733065906,-151.0,0.00045443,30]
[391701487,1760733065915,-1000.0,0.00045443,30]
[391701488,1760733065926,-151.0,0.00045443,30]
[391701489,1760733065935,-295.37683297,0.00045443,30]
[391701490,1760733065945,-1000.0,0.00045443,30]
[391701491,1760733065954,-298.0,0.00045443,30]
[391701492,1760733065964,-1000.0,0.00045443,30]
[391701493,1760733065974,-160.0,0.00045443,30]
[391701494,1760733065983,-151.0,0.00045443,30]
[391701495,1760733065992,-1000.0,0.00045443,30]
[391701496,1760733066002,-151.0,0.00045443,30]
[391701497,1760733066011,-1000.0,0.00045443,30]
[391701498,1760733066020,-160.0,0.00045443,30]
[391701499,1760733066030,-177.804928,0.00045443,120]
[391701500,1760733066040,-1000.0,0.00045443,30]
[391701501,1760733066050,-161.87821488,0.00045443,30]
[391701502,1760733066060,-151.0,0.00045443,30]
[391701503,1760733066070,-1000.0,0.00045443,30]
[391701504,1760733066079,-1000.0,0.00045443,30]
[391701505,1760733066090,-151.0,0.00045443,30]
[391701506,1760733066099,-670.971821,0.00045443,120]
[391701507,1760733066109,-1000.0,0.00045443,30]
[391701508,1760733066119,-177.804928,0.00045443,120]
[391701509,1760733066128,-1000.0,0.00045443,30]
[391701510,1760733066138,-1000.0,0.00045443,30]
[391701511,1760733066148,-151.0,0.00045443,30]
[391701512,1760733066157,-1000.0,0.00045443,30]
[391701513,1760733066167,-600.0,0.00045443,30]
[391701514,1760733066177,-1000.0,0.00045443,30]
[391701515,1760733066187,-670.971821,0.00045443,120]
[391701516,1760733066195,-239.79609754,0.00045443,30]
[391701517,1760733066205,-177.804936,0.00045443,120]
[391701518,1760733066214,-600.0,0.00045443,30]
[391701519,1760733066224,-151.0,0.00045443,30]
[391701520,1760733066234,-600.0,0.00045443,30]
[391701521,1760733066243,-151.0,0.00045443,120]
[391701522,1760733066252,-151.0,0.00045443,30]
[391701523,1760733066261,-670.971821,0.00045443,120]
[391701524,1760733066271,-600.0,0.00045443,30]
[391701525,1760733066280,-151.0,0.00045443,30]
[391701526,1760733066290,-600.0,0.00045443,30]
[391701527,1760733066299,-6888.0,0.00045443,30]
[391701528,1760733066308,-151.0,0.00045443,30]
[391701529,1760733066318,-151.0,0.00045443,30]
[391701530,1760733066328,-600.0,0.00045443,30]
[391701531,1760733066338,-7142.856,0.00045443,30]
[391701532,1760733066347,-670.971828,0.00045443,120]
[391701533,1760733066357,-151.0,0.00045443,30]
[391701534,1760733066367,-151.0,0.00045443,30]
[391701535,1760733066376,-600.0,0.00045443,30]
[391701536,1760733066386,-7407.141672,0.00045443,30]
[391701537,1760733066396,-151.0,0.00045443,30]
[391701538,1760733066405,-151.0,0.00045443,30]
[391701539,1760733066415,-151.0,0.00045443,30]
[391701540,1760733066424,-600.0,0.00045443,30]
[391701541,1760733066434,-7681.20591386,0.00045443,30]
[391701542,1760733066443,-151.0,0.00045443,30]
[391701543,1760733066453,-151.0,0.00045443,30]
[391701544,1760733066462,-600.0,0.00045443,30]
[391701545,1760733066472,-151.0,0.00045443,30]
[391701546,1760733066481,-7965.41053268,0.00045443,30]
[391701547,1760733066491,-154.421392,0.00045443,120]
[391701548,1760733066500,-151.0,0.00045443,30]
[391701549,1760733066510,-151.0,0.00045443,30]
[391701550,1760733066519,-151.0,0.00045443,30]
[391701551,1760733066529,-600.0,0.00045443,30]
[391701552,1760733066541,-8260.13072239,0.00045443,30]
[391701553,1760733066550,-151.0,0.00045443,30]
[391701554,1760733066560,-151.0,0.00045443,30]
[391701555,1760733066570,-500.0,0.00045443,30]
[391701556,1760733066579,-8565.75555911,0.00045443,30]
[391701557,1760733066589,-151.0,0.00045443,30]
[391701558,1760733066599,-151.0,0.00045443,30]
[391701559,1760733066609,-151.0,0.00045443,30]
[391701560,1760733066621,-154.421392,0.00045443,120]
[391701562,1760733066631,-680.599913,0.00045443,120]
[391701563,1760733066640,-500.0,0.00045443,30]
[391701564,1760733066650,-8882.6885148,0.00045443,30]
[391701566,1760733066659,-151.0,0.00045443,30]
[391701567,1760733066669,-151.0,0.00045443,30]
[391701568,1760733066678,-184.8544265,0.00045443,30]
[391701569,1760733066688,-500.0,0.00045443,30]
[391701570,1760733066697,-9211.34798985,0.00045443,30]
[391701571,1760733066707,-151.0,0.00045443,30]
[391701572,1760733066716,-154.421392,0.00045443,120]
[391701573,1760733066725,-500.0,0.00045443,30]
[391701574,1760733066734,-240.774713,0.00045443,120]
[391701575,1760733066744,-9552.16786547,0.00045443,30]
[391701576,1760733066753,-680.599913,0.00045443,120]
[391701577,1760733066762,-151.0,0.00045443,30]
[391701578,1760733066771,-500.0,0.00045443,30]
[391701579,1760733066781,-9905.5980765,0.00045443,30]
[391701580,1760733066790,-151.0,0.00045443,120]
[391701581,1760733066799,-151.0,0.00045443,30]
[391701582,1760733066808,-3000.0,0.00045443,30]
[391701583,1760733066817,-1000.0,0.00045443,30]
[391701584,1760733066826,-500.0,0.00045443,30]
[391701585,1760733066836,-10272.10520533,0.00045443,30]
[391701586,1760733066845,-154.421394,0.00045443,120]
[391701587,1760733066854,-283.832494,0.00045443,120]
[391701588,1760733066864,-151.0,0.00045443,30]
[391701589,1760733066873,-240.774713,0.00045443,120]
[391701590,1760733066883,-1000.0,0.00045443,30]
[391701591,1760733066892,-680.599913,0.00045443,120]
[391701592,1760733066902,-3000.0,0.00045443,30]
[391701593,1760733066911,-500.0,0.00045443,30]
[391701594,1760733066921,-10652.17309792,0.00045443,30]
[391701595,1760733066930,-3000.0,0.00045443,30]
[391701596,1760733066939,-300.0,0.00045443,30]
[391701597,1760733066948,-500.0,0.00045443,30]
[391701598,1760733066958,-151.0,0.00045443,30]
[391701599,1760733066967,-11046.30350255,0.00045443,30]
[391701600,1760733066976,-250.0,0.00045443,30]
[391701601,1760733066985,-3000.0,0.00045443,30]
[391701602,1760733066994,-311.1,0.00045443,30]
[391701603,1760733067004,-500.0,0.00045443,30]
[391701604,1760733067013,-1000.0,0.00045443,30]
[391701605,1760733067023,-240.774713,0.00045443,120]
[391701606,1760733067032,-11455.01673214,0.00045443,30]
[391701607,1760733067041,-151.0,0.00045443,30]
[391701608,1760733067051,-283.832494,0.00045443,120]
[391701609,1760733067060,-680.599908,0.00045443,120]
[391701610,1760733067069,-193.9679,0.00045443,120]
[391701611,1760733067079,-250.0,0.00045443,30]
[391701612,1760733067088,-322.6107,0.00045443,30]
[391701613,1760733067097,-3000.0,0.00045443,30]
[391701614,1760733067107,-1000.0,0.00045443,30]
[391701615,1760733067116,-11878.85235123,0.00045443,30]
[391701616,1760733067125,-151.0,0.00045443,30]
[391701617,1760733067135,-250.0,0.00045443,30]
[391701618,1760733067145,-500.0,0.00045443,30]
[391701619,1760733067155,-3000.0,0.00045443,30]
[391701620,1760733067165,-151.0,0.00045443,120]
[391701621,1760733067175,-1000.0,0.00045443,30]
[391701622,1760733067184,-12318.36988823,0.00045443,30]
[391701623,1760733067194,-151.0,0.00045443,30]
[391701624,1760733067203,-240.774719,0.00045443,120]
[391701625,1760733067213,-250.0,0.00045443,30]
[391701626,1760733067223,-334.5472959,0.00045443,30]
[391701627,1760733067232,-193.9679,0.00045443,120]
[391701628,1760733067242,-500.0,0.00045443,30]
[391701629,1760733067251,-3000.0,0.00045443,30]
[391701630,1760733067260,-283.832494,0.00045443,120]
[391701631,1760733067270,-1000.0,0.00045443,30]
[391701632,1760733067280,-12774.14957409,0.00045443,30]
[391701633,1760733067290,-250.0,0.00045443,30]
[391701634,1760733067299,-346.92554585,0.00045443,30]
[391701635,1760733067308,-500.0,0.00045443,30]
[391701636,1760733067319,-3000.0,0.00045443,30]
[391701637,1760733067328,-1000.0,0.00045443,30]
[391701638,1760733067337,-13246.79310833,0.00045443,30]
[391701639,1760733067347,-250.0,0.00045443,30]
[391701640,1760733067356,-359.76179104,0.00045443,30]
[391701641,1760733067365,-500.0,0.00045443,30]
[391701642,1760733067374,-3000.0,0.00045443,30]
[391701643,1760733067383,-193.9679,0.00045443,120]
[391701644,1760733067393,-1000.0,0.00045443,30]
[391701645,1760733067402,-13736.92445334,0.00045443,30]
[391701646,1760733067412,-283.832493,0.00045443,120]
[391701647,1760733067421,-250.0,0.00045443,30]
[391701648,1760733067430,-373.07297731,0.00045443,30]
[391701649,1760733067439,-500.0,0.00045443,30]
[391701650,1760733067448,-151.0,0.00045443,120]
[391701651,1760733067457,-3000.0,0.00045443,30]
[391701652,1760733067467,-1000.0,0.00045443,30]
[391701653,1760733067476,-358.0422157,0.00045443,30]
[391701654,1760733067485,-386.87667747,0.00045443,30]
[391701655,1760733067494,-500.0,0.00045443,30]
[391701656,1760733067504,-1000.0,0.00045443,30]
[391701657,1760733067513,-3000.0,0.00045443,30]
[391701658,1760733067522,-193.967897,0.00045443,120]
[391701659,1760733067531,-250.0,0.00045443,30]
[391701660,1760733067544,-500.0,0.00045443,30]
[391701661,1760733067553,-401.19111454,0.00045443,30]
[391701662,1760733067661,-3000.0,0.00045443,30]
[391701663,1760733067671,-1000.0,0.00045443,30]
[391701664,1760733067681,-250.0,0.00045443,30]
[391701665,1760733067690,-500.0,0.00045443,30]
[391701666,1760733067700,-416.03518578,0.00045443,30]
[391701667,1760733067709,-300.751597,0.00045443,120]
[391701668,1760733067719,-3000.0,0.00045443,30]